bitfinex/quotes_ETHUSD_20241019
["timestamp","ask_amount","ask_price","bid_price","bid_amount"]
[1729299353793,0.28369636,2637.8,2637.2,0.7752]
[1729299354090,0.36389253,2637.7,2637.3,0.54800574]
[1729299354268,0.28369636,2637.6,2637.4,0.7752]
[1729299354465,2.52167184,2638.3,2637.4,0.7752]
[1729299354678,0.63852651,2638.2,2637.4,0.7752]
[1729299354876,0.63852651,2638.1,2637.4,0.7752]
[1729299355201,0.63852651,2638.0,2637.4,0.7752]
[1729299355507,0.08023489,2637.9,2637.4,0.7752]
[1729299355815,0.36404287,2637.9,2637.4,0.7752]
[1729299355976,0.28380798,2637.8,2637.4,0.7752]
[1729299356177,0.28380798,2637.7,2637.4,0.7752]
[1729299356378,0.28380798,2637.6,2637.4,0.7752]
[1729299356603,0.5365,2638.3,2637.4,0.7752]
[1729299356908,0.71883027,2638.2,2637.4,0.7752]
[1729299357114,0.6385898,2638.1,2637.4,0.7752]
[1729299357323,0.6385898,2638.0,2637.4,0.7752]
[1729299357503,0.28381784,2637.9,2637.4,0.7752]
[1729299357712,0.28381784,2637.8,2637.4,0.7752]
[1729299358013,0.08023303,2637.8,2637.5,0.54800574]
[1729299358318,1.98647399,2638.5,2637.6,0.7752]
[1729299358491,0.63866819,2638.4,2637.6,0.7752]
[1729299358817,0.63866819,2638.3,2637.6,0.7752]
[1729299359016,0.63866819,2638.2,2637.6,0.7752]
[1729299359214,0.63866819,2638.1,2637.6,0.7752]
[1729299359518,0.36411405,2638.0,2637.6,0.7752]
[1729299359827,0.2838246,2637.9,2637.6,0.7752]
[1729299359978,0.08026125,2638.0,2637.6,0.7752]
[1729299359979,0.2838246,2637.8,2637.6,0.7752]
[1729299360179,0.2838246,2637.7,2637.6,0.7752]
[1729299364027,0.5365,2638.3,2637.6,0.7752]
[1729299364332,0.71905871,2638.2,2637.6,0.7752]
[1729299364637,0.63875874,2638.1,2637.6,0.7752]
[1729299364939,0.36419916,2638.0,2637.6,0.7752]
[1729299365240,0.28390291,2637.9,2637.6,0.7752]
[1729299365399,0.28390291,2637.8,2637.6,0.7752]
[1729299365600,0.28390291,2637.7,2637.6,0.7752]
[1729299369711,0.5677825,2637.7,2637.6,0.7752]
[1729299370197,0.56778229,2637.7,2637.6,0.7752]
[1729299372530,0.28389107,2637.7,2637.6,0.7752]
[1729299373504,0.28388409,2637.7,2637.6,0.7752]
[1729299373738,0.5365,2638.3,2637.6,0.7752]
[1729299374042,0.63872783,2638.2,2637.7,0.07580832]
[1729299374242,0.28387786,2638.1,2637.7,0.07580832]
[1729299374417,0.28387786,2638.0,2637.7,0.07580832]
[1729299374617,0.28387786,2637.9,2637.7,0.07580832]
[1729299374821,0.07761608,2638.0,2637.8,0.7963]
[1729299375115,0.5365,2638.5,2637.9,0.07580455]
[1729299375301,0.63854474,2638.4,2637.9,0.07580455]
[1729299375503,0.28379766,2638.3,2637.9,0.07580455]
[1729299375727,0.28379766,2638.2,2637.9,0.07580455]
[1729299375945,0.28379766,2638.1,2637.9,0.07580455]
[1729299376141,0.5365,2638.5,2638.0,0.7963]
[1729299376361,0.28379579,2638.4,2638.0,0.7963]
[1729299376566,0.28379579,2638.3,2638.0,0.7963]
[1729299376863,0.28379579,2638.2,2638.0,0.7963]
[1729299377019,0.28379579,2638.1,2638.0,0.7963]
[1729299377225,0.5365,2638.5,2638.0,0.7963]
[1729299377460,0.7160765,2638.4,2638.0,0.7963]
[1729299377766,0.2837486,2638.3,2638.0,0.7963]
[1729299377935,0.2837486,2638.2,2638.0,0.7963]
[1729299378131,0.2837486,2638.1,2638.0,0.7963]
[1729299381668,0.5365,2638.5,2638.0,0.7963]
[1729299381834,0.36129109,2638.4,2638.0,0.7963]
[1729299382034,0.28361574,2638.3,2638.0,0.7963]
[1729299382234,0.28361574,2638.2,2638.0,0.7963]
[1729299382449,0.5365,2638.5,2638.0,0.7963]
[1729299382651,0.3612737,2638.4,2638.0,0.7963]
[1729299382852,0.28359835,2638.3,2638.0,0.7963]
[1729299383188,0.28359835,2638.2,2638.0,0.7963]
[1729299383334,0.5365,2638.5,2638.0,0.7963]
[1729299383562,0.07766977,2638.1,2638.0,0.7963]
[1729299383801,0.5365,2638.5,2638.0,0.7963]
[1729299384107,0.36125603,2638.4,2638.0,0.7963]
[1729299384258,0.28358068,2638.3,2638.0,0.7963]
[1729299384458,0.28358068,2638.2,2638.0,0.7963]
[1729299384664,0.5365,2638.5,2638.0,0.7963]
[1729299385007,0.3612411,2638.4,2638.0,0.7963]
[1729299385298,0.28356575,2638.3,2638.0,0.7963]
[1729299385475,0.28356575,2638.2,2638.0,0.7963]
[1729299385802,0.5365,2638.5,2638.0,0.7963]
[1729299386105,0.36127706,2638.4,2638.0,0.7963]
[1729299386289,0.28355274,2638.3,2638.0,0.7963]
[1729299386598,0.28355274,2638.2,2638.1,0.62380442]
[1729299386802,0.28355274,2638.2,2638.1,1.45020442]
[1729299387363,0.5365,2638.8,2638.1,1.45020442]
[1729299387597,0.63792395,2638.7,2638.1,1.45020442]
[1729299387766,0.63792395,2638.6,2638.1,1.45020442]
[1729299387962,0.28352176,2638.5,2638.1,1.45020442]
[1729299388176,0.28352176,2638.4,2638.1,1.45020442]
[1729299388381,0.28352176,2638.3,2638.1,1.45020442]
[1729299388707,0.5365,2638.8,2638.1,1.45020442]
[1729299388870,0.28350922,2638.7,2638.1,0.90219868]
[1729299389071,0.36125889,2638.6,2638.1,0.90219868]
[1729299389275,0.28350922,2638.5,2638.1,0.90219868]
[1729299389500,0.36125517,2638.4,2638.1,0.90219868]
[1729299389666,0.28350922,2638.3,2638.1,0.90219868]
[1729299389865,0.5365,2638.8,2638.1,0.90219868]
[1729299390176,0.71562558,2638.7,2638.1,0.90219868]
[1729299390389,0.28349804,2638.6,2638.1,0.90219868]
[1729299390566,0.28349804,2638.5,2638.1,0.90219868]
[1729299390767,0.28349804,2638.4,2638.1,0.90219868]
[1729299390979,0.28349804,2638.3,2638.1,0.90219868]
[1729299391183,0.5365,2638.8,2638.1,0.90219868]
[1729299391479,0.71559086,2638.7,2638.1,0.90219868]
[1729299391793,0.28348267,2638.6,2638.1,0.90219868]
[1729299391966,0.28348267,2638.5,2638.1,0.90219868]
[1729299392179,0.28348267,2638.4,2638.1,0.90219868]
[1729299392368,0.28348267,2638.3,2638.1,0.90219868]
[1729299392680,0.5365,2638.8,2638.1,0.90219868]
[1729299392883,0.63782678,2638.7,2638.1,0.90219868]
[1729299393100,0.28347857,2638.6,2638.1,0.90219868]
[1729299393406,0.36122988,2638.5,2638.1,0.90219868]
[1729299393583,0.28347857,2638.4,2638.1,0.90219868]
[1729299393780,0.28347857,2638.3,2638.1,0.90219868]
[1729299394115,0.5365,2638.8,2638.1,0.90219868]
[1729299394404,0.07774573,2638.2,2638.1,0.90219868]
[1729299394613,0.5365,2638.8,2638.1,0.90219868]
[1729299394910,0.6378361,2638.7,2638.1,0.90219868]
[1729299395108,0.28348271,2638.6,2638.1,0.90219868]
[1729299395273,0.28348271,2638.5,2638.1,0.90219868]
[1729299395472,0.28348271,2638.4,2638.1,0.90219868]
[1729299395673,0.28348271,2638.3,2638.1,0.90219868]
[1729299396010,0.5365,2638.8,2638.1,0.90219868]
[1729299396172,0.63791805,2638.7,2638.1,0.8264]
[1729299396366,0.28351921,2638.6,2638.1,0.8264]
[1729299396566,0.28351921,2638.5,2638.1,0.8264]
[1729299396765,0.28351921,2638.4,2638.1,0.8264]
[1729299397007,0.28351921,2638.3,2638.1,0.8264]
[1729299397411,0.5365,2638.8,2638.1,0.8264]
[1729299397573,0.07774573,2638.2,2638.1,0.8264]
[1729299397772,0.28354965,2638.2,2638.1,0.8264]
[1729299398294,0.28354965,2638.7,2638.1,0.8264]
[1729299398539,0.71603119,2638.6,2638.1,0.8264]
[1729299398849,0.28354965,2638.5,2638.1,0.8264]
[1729299399052,0.28354965,2638.4,2638.1,0.8264]
[1729299399235,0.28354965,2638.3,2638.1,0.8264]
[1729299399435,0.28354965,2638.2,2638.1,0.8264]
[1729299399844,0.28354965,2638.7,2638.1,0.8264]
[1729299400019,0.63804422,2638.6,2638.1,0.8264]
[1729299400349,0.28354965,2638.5,2638.1,0.8264]
[1729299400558,0.28354965,2638.4,2638.1,0.8264]
[1729299400852,0.28354965,2638.3,2638.1,0.8264]
[1729299401058,0.28354965,2638.2,2638.1,0.8264]
[1729299402270,0.28354965,2638.6,2638.1,0.8264]
[1729299402554,0.36168199,2638.5,2638.2,0.07579619]
[1729299402756,0.28365431,2638.4,2638.2,0.07579619]
[1729299402953,0.28365431,2638.3,2638.2,0.07579619]
[1729299403342,0.36167827,2638.3,2638.2,0.07579619]
[1729299406053,0.36170985,2638.3,2638.2,0.07579619]
[1729299406256,0.28368589,2638.3,2638.2,0.07579619]
[1729299406660,0.36170985,2638.3,2638.2,0.07579619]
[1729299411770,0.07802396,2638.3,2638.2,0.07579619]
[1729299411976,0.3617606,2638.3,2638.2,0.07579619]
[1729299415683,0.07802396,2638.3,2638.2,0.07579619]
[1729299415889,0.36184003,2638.3,2638.2,0.07579619]
[1729299416123,0.36185053,2638.3,2638.2,0.07579619]
[1729299416334,0.36185053,2638.3,2638.2,0.90409619]
[1729299416826,0.5365,2638.8,2638.2,0.8283]
[1729299417030,0.07543796,2638.3,2638.2,0.8283]
[1729299417365,0.35923098,2638.3,2638.2,0.8283]
[1729299417489,0.28379302,2638.3,2638.2,0.8283]
[1729299417901,0.35923098,2638.3,2638.2,0.8283]
[1729299422196,0.35936466,2638.3,2638.2,0.8283]
[1729299422395,0.35936466,2638.3,2638.2,1.37630574]
[1729299422904,0.2839267,2638.3,2638.2,1.37630574]
[1729299423091,0.35947658,2638.3,2638.2,1.37630574]
[1729299426005,0.3594307,2638.3,2638.2,1.37630574]
[1729299426408,0.07554988,2638.3,2638.2,1.37630574]
[1729299426615,0.28387158,2638.3,2638.2,1.37630574]
[1729299426926,0.35942146,2638.3,2638.2,1.37630574]
[1729299429943,0.35940385,2638.3,2638.2,1.37630574]
[1729299430899,0.28385397,2638.3,2638.2,1.37630574]
[1729299431151,0.5365,2638.8,2638.2,1.37630574]
[1729299431298,0.63861193,2638.7,2638.3,0.07579009]
[1729299431495,0.28382452,2638.6,2638.2,0.8283]
[1729299431741,0.19718226,2638.5,2638.2,0.8283]
[1729299431900,0.5365,2638.8,2638.2,0.8283]
[1729299432238,0.35479155,2638.7,2638.2,0.8283]
[1729299432450,0.5365,2638.8,2638.2,0.8283]
[1729299432647,0.35478812,2638.7,2638.2,0.8283]
[1729299432846,0.5365,2638.8,2638.2,0.8283]
[1729299433051,0.3547883,2638.7,2638.2,0.8283]
[1729299433226,0.5365,2638.8,2638.2,0.8283]
[1729299433429,0.35478032,2638.7,2638.2,0.8283]
[1729299433625,0.5365,2638.8,2638.2,0.8283]
[1729299433929,0.35478031,2638.7,2638.2,0.8283]
[1729299434141,0.5365,2638.8,2638.2,0.8283]
[1729299434356,0.35477358,2638.7,2638.2,0.8283]
[1729299434652,0.5365,2638.8,2638.2,0.8283]
[1729299434854,0.35477362,2638.7,2638.2,0.8283]
[1729299435158,0.5365,2638.8,2638.2,0.8283]
[1729299435354,0.35476656,2638.7,2638.2,0.8283]
[1729299435553,0.5365,2638.8,2638.2,0.8283]
[1729299436466,0.35475906,2638.7,2638.2,0.8283]
[1729299436619,0.5365,2638.8,2638.2,0.8283]
[1729299436964,0.35475996,2638.7,2638.2,0.8283]
[1729299437117,0.5365,2638.8,2638.2,0.8283]
[1729299437320,0.35475768,2638.7,2638.2,0.8283]
[1729299437520,0.5365,2638.8,2638.2,0.8283]
[1729299437722,0.35475726,2638.7,2638.2,0.8283]
[1729299437921,0.5365,2638.8,2638.2,0.8283]
[1729299438160,0.35475697,2638.7,2638.2,0.8283]
[1729299438328,0.5365,2638.8,2638.2,0.8283]
[1729299438521,0.35475442,2638.7,2638.2,0.8283]
[1729299438822,0.5365,2638.8,2638.2,0.8283]
[1729299439631,0.07558528,2638.7,2638.3,0.05733756]
[1729299439845,0.5365,2638.8,2638.3,0.05733756]
[1729299440049,0.07558342,2638.6,2638.3,0.05733756]
[1729299440252,0.5365,2638.8,2638.3,0.05733756]
[1729299440422,0.07558156,2638.5,2638.3,0.05733756]
[1729299440823,0.5365,2638.8,2638.3,0.05733756]
[1729299441064,0.0755797,2638.4,2638.3,0.05733756]
[1729299441271,0.5365,2638.8,2638.3,0.05733756]
[1729299441637,0.07558528,2638.7,2638.3,0.05733756]
[1729299441945,0.5365,2638.8,2638.3,0.05733756]
[1729299442153,0.07558342,2638.6,2638.3,0.05733756]
[1729299442326,0.07558528,2638.7,2638.3,0.05733756]
[1729299442662,0.5365,2638.8,2638.7,3.0]
[1729299442870,0.5365,2638.8,2638.3,0.05733756]
[1729299445030,0.5365,2639.5,2638.2,0.7558]
[1729299445226,0.07564474,2638.7,2638.4,0.7558]
[1729299445429,0.5365,2639.1,2638.5,0.05747584]
[1729299445740,0.5365,2639.1,2638.0,3.0]
[1729299445741,0.5365,2639.1,2638.6,0.7558]
[1729299446262,0.5365,2639.1,2638.2,0.7558]
[1729299461567,0.5365,2639.1,2638.3,0.8034]
[1729299467710,0.5365,2639.1,2638.4,0.07577047]
[1729299467904,0.5365,2639.1,2638.5,0.8034]
[1729299468071,0.5365,2639.1,2638.6,0.07578152]
[1729299474386,0.5365,2639.1,2638.5,0.8034]
[1729299479524,0.5365,2639.1,2638.2,0.833]
[1729299482895,0.5365,2639.1,2638.1,0.47857363]
[1729299483102,0.5365,2639.1,2638.1,0.93279167]
[1729299492708,0.5365,2639.1,2638.2,0.7646]
[1729299495317,0.5365,2639.1,2638.1,1.38507484]
[1729299495510,0.5365,2639.1,2638.1,0.45228317]
[1729299496225,0.5365,2639.1,2638.0,3.7646]
[1729299496423,0.5365,2639.1,2638.0,4.69739167]
[1729299499423,0.5365,2639.1,2638.0,4.21881804]
[1729299499724,0.5365,2639.1,2638.1,0.07579036]
[1729299506154,0.5365,2639.1,2638.0,4.67109893]
[1729299506866,0.5365,2639.1,2638.4,1.59007584]
[1729299507058,0.5365,2639.1,2638.4,4.59007584]
[1729299507356,1.98888099,2639.3,2638.4,4.59007584]
[1729299507357,0.5365,2638.9,2638.4,4.59007584]
[1729299507527,0.5365,2638.9,2638.4,1.59007584]
[1729299507722,0.5365,2638.7,2638.4,1.59007584]
[1729299508336,0.5365,2638.7,2638.3,4.59007584]
[1729299509658,0.5365,2638.7,2638.4,1.59007584]
[1729299509957,0.5365,2638.7,2638.4,1.619571]
[1729299511059,0.5365,2638.7,2638.4,1.59007584]
[1729299512347,0.5365,2638.7,2638.3,4.59007584]
[1729299513666,0.5365,2638.7,2638.4,4.59007584]
[1729299514855,0.5365,2638.7,2638.4,1.59007584]
[1729299515936,0.5365,2638.7,2638.5,0.07579031]
[1729299517245,0.5365,2638.7,2638.4,1.59007584]
[1729299519072,0.5365,2638.7,2638.5,0.07578953]
[1729299520533,0.5365,2638.7,2638.4,1.59007584]
[1729299522176,0.5365,2638.7,2638.5,0.0757907]
[1729299524473,0.5365,2638.7,2638.4,1.59007584]
[1729299525072,0.5365,2638.7,2638.5,0.07579092]
[1729299527471,0.5365,2638.7,2638.4,1.59007584]
[1729299527776,0.5365,2638.7,2638.4,4.59007584]
[1729299528493,0.5365,2638.7,2638.4,1.59007584]
[1729299528841,0.5365,2638.7,2638.3,4.59007584]
[1729299532900,0.5365,2638.7,2638.2,4.59007584]
[1729299533055,0.5365,2638.7,2638.2,1.59007584]
[1729299536318,0.5365,2638.7,2638.3,1.59007584]
[1729299536454,0.5365,2638.7,2638.2,1.59007584]
[1729299541072,0.5365,2638.7,2638.3,1.59007584]
[1729299541490,0.5365,2638.7,2638.2,1.59007584]
[1729299549787,0.5365,2638.7,2638.1,4.59007584]
[1729299549986,0.5365,2638.7,2638.2,1.59007584]
[1729299550218,0.5365,2638.7,2638.2,1.58922711]
[1729299550824,0.5365,2638.7,2638.0,5.89396851]
[1729299553798,0.5365,2638.7,2638.1,4.98746958]
[1729299554539,0.5365,2638.7,2638.1,3.0]
[1729299554899,0.5365,2638.7,2638.1,1.98724925]
[1729299555234,0.5365,2638.7,2638.1,3.0]
[1729299555443,0.5365,2638.7,2638.1,4.98724925]
[1729299556948,0.5365,2638.7,2638.1,3.0]
[1729299558241,0.5365,2638.7,2638.1,4.58982895]
[1729299559308,0.5365,2638.7,2638.2,1.58982895]
[1729299559812,0.5365,2638.7,2638.3,0.07579142]
[1729299560835,0.5365,2638.7,2638.1,4.58982895]
[1729299562503,0.5365,2638.7,2638.2,4.58982895]
[1729299563319,0.5365,2638.7,2638.2,1.58982895]
[1729299564316,0.5365,2638.7,2638.3,3.0]
[1729299564515,0.5365,2638.7,2638.2,4.58982895]
[1729299567234,0.5365,2638.7,2638.3,1.58982895]
[1729299567824,0.5365,2638.7,2638.3,4.58982895]
[1729299568327,0.5365,2638.7,2638.4,3.0]
[1729299568532,0.5365,2638.7,2638.4,4.58982895]
[1729299568846,0.5365,2638.7,2638.4,3.0]
[1729299569158,0.5365,2638.7,2638.3,4.58982895]
[1729299570860,0.5365,2638.7,2638.3,1.58982895]
[1729299577751,0.5365,2638.7,2638.2,4.98750291]
[1729299577752,0.5365,2638.7,2638.4,1.58982895]
[1729299578075,0.5365,2638.7,2638.3,1.58982895]
[1729299583957,0.5365,2638.7,2638.2,4.58982895]
[1729299584179,0.5365,2638.7,2638.2,1.58982895]
[1729299585448,0.5365,2638.7,2638.1,4.58982895]
[1729299586182,0.5365,2638.7,2638.1,5.04404699]
[1729299586434,0.5365,2638.7,2638.2,1.58982895]
[1729299586687,0.5365,2638.7,2638.2,0.45421804]
[1729299586878,0.5365,2638.7,2638.2,2.04404699]
[1729299587084,0.5365,2638.7,2638.2,0.45421804]
[1729299587284,0.5365,2638.7,2638.2,2.04404699]
[1729299587650,0.5365,2638.7,2638.2,0.45421804]
[1729299588745,0.5365,2638.7,2638.2,2.04404699]
[1729299589189,0.5365,2638.7,2638.2,0.45421804]
[1729299589884,0.5365,2638.7,2638.2,2.04404699]
[1729299590500,0.5365,2638.7,2638.2,0.45421804]
[1729299592195,0.5365,2638.7,2638.3,0.04476089]
[1729299594193,0.5365,2638.7,2638.2,0.45421804]
[1729299595863,0.5365,2638.7,2638.2,2.04404699]
[1729299596380,0.5365,2638.7,2638.2,0.45421804]
[1729299597377,0.5365,2638.7,2638.2,2.04404699]
[1729299598104,0.5365,2638.7,2638.2,0.45421804]
[1729299598479,0.5365,2638.7,2638.3,0.0757945]
[1729299600269,0.5365,2638.7,2638.0,4.58982895]
[1729299601695,0.5365,2638.7,2638.1,0.02776907]
[1729299602271,0.5365,2638.7,2638.1,0.07580037]
[1729299607215,0.5365,2638.7,2638.0,1.58982895]
[1729299607726,0.5365,2638.7,2637.9,4.58982895]
[1729299610386,0.5365,2638.7,2638.0,0.06772665]
[1729299614591,0.5365,2638.7,2637.9,4.58982895]
[1729299616927,0.5365,2638.7,2637.9,1.58982895]
[1729299617831,0.5365,2638.7,2637.8,5.37302895]
[1729299618033,0.5365,2638.7,2637.8,5.96584454]
[1729299618533,0.5365,2638.7,2637.9,1.58982895]
[1729299618695,0.5365,2638.7,2637.8,5.96584454]
[1729299620110,0.5365,2638.7,2637.9,1.58982895]
[1729299620313,0.5365,2638.7,2637.8,5.96584454]
[1729299621243,0.5365,2638.7,2637.9,1.58982895]
[1729299621400,0.5365,2638.7,2637.8,5.96584454]
[1729299622549,0.5365,2638.7,2637.9,2.11984835]
[1729299622838,0.5365,2638.7,2637.9,5.11984835]
[1729299625954,0.5365,2638.7,2638.0,1.58982895]
[1729299626242,0.5365,2638.7,2638.1,0.07580137]
[1729299626543,0.07310166,2638.6,2638.1,0.07580137]
[1729299626705,0.5365,2638.5,2638.1,0.07580137]
[1729299628722,0.5365,2638.5,2638.0,1.58982895]
[1729299632615,0.5365,2638.5,2637.9,5.04404699]
[1729299632824,0.5365,2638.5,2638.0,1.58982895]
[1729299644762,0.5365,2638.5,2638.1,1.58982895]
[1729299644973,0.5365,2638.5,2638.0,1.58982895]
[1729299645172,0.07313643,2638.4,2638.0,1.58982895]
[1729299645391,0.5365,2638.5,2638.0,1.58982895]
[1729299649670,0.5365,2638.5,2638.1,1.58982895]
[1729299649851,0.07070239,2638.4,2638.1,1.58982895]
[1729299650053,0.5365,2638.5,2638.0,1.58982895]
[1729299650848,0.5365,2638.5,2638.1,1.58982895]
[1729299651179,0.07071639,2638.4,2638.1,1.58982895]
[1729299651389,0.07071639,2638.4,2638.0,1.58982895]
[1729299651683,0.5365,2638.5,2638.1,1.58982895]
[1729299651844,0.07071639,2638.4,2638.1,1.58982895]
[1729299652173,0.5365,2638.5,2638.0,1.58982895]
[1729299652584,0.5365,2638.9,2638.1,5.56564575]
[1729299652880,0.07071639,2638.4,2638.2,5.38472895]
[1729299653069,0.5365,2638.6,2638.2,4.58982895]
[1729299653466,0.5365,2638.6,2638.1,4.58982895]
[1729299660788,0.5365,2639.0,2638.3,3.7949]
[1729299660989,0.5365,2639.0,2638.4,2.62109225]
[1729299661289,0.07081657,2638.9,2638.4,5.62109225]
[1729299661546,8.26864314,2639.9,2638.3,4.58982895]
[1729299661547,0.5365,2638.8,2638.3,4.58982895]
[1729299661679,0.5365,2638.8,2638.3,1.58982895]
[1729299661874,0.07083034,2638.7,2638.2,4.58982895]
[1729299662074,1.98794857,2639.3,2638.3,1.58982895]
[1729299662075,0.5365,2638.6,2638.3,1.58982895]
[1729299662281,0.5365,2638.6,2638.2,4.58982895]
[1729299662672,0.5365,2638.6,2638.3,1.58982895]
[1729299663194,0.5365,2638.6,2638.4,0.0638417]
[1729299663701,0.5365,2638.6,2638.3,0.07579391]
[1729299664058,0.5365,2638.6,2638.2,4.58982895]
[1729299664598,0.5365,2638.6,2638.3,0.07579393]
[1729299664799,0.5365,2638.6,2638.2,4.58982895]
[1729299665095,0.5365,2638.6,2638.2,1.58982895]
[1729299665300,0.5365,2638.6,2638.1,4.58982895]
[1729299667805,0.5365,2638.6,2638.0,5.04218693]
[1729299669513,0.5365,2638.6,2638.1,0.07579778]
[1729299669898,0.5365,2638.6,2638.0,5.04218693]
[1729299670121,0.5365,2638.6,2638.0,0.45235798]
[1729299670613,0.5365,2638.6,2638.1,0.07580176]
[1729299671616,0.5365,2638.6,2638.1,4.3491023]
[1729299672006,0.5365,2638.6,2638.1,5.93893125]
[1729299672486,0.5365,2638.6,2638.1,4.3491023]
[1729299672908,0.5365,2638.6,2638.1,3.5527023]
[1729299674584,0.5365,2638.6,2638.1,5.14253125]
[1729299674901,0.5365,2638.6,2638.1,3.5527023]
[1729299675713,0.5365,2638.6,2638.1,5.14253125]
[1729299675909,0.5365,2638.6,2638.1,3.5527023]
[1729299686614,0.5365,2638.6,2638.1,0.07580176]
[1729299691145,0.5365,2638.6,2638.2,0.48035708]
[1729299691344,0.5365,2638.6,2638.3,0.07579601]
[1729299691842,0.5365,2638.6,2638.2,5.07018603]
[1729299692144,0.5365,2638.6,2638.2,3.48035708]
[1729299692720,0.5365,2638.6,2638.2,5.07018603]
[1729299692903,0.5365,2638.6,2638.2,3.48035708]
[1729299693438,0.5365,2638.6,2638.3,0.07579495]
[1729299693804,0.5365,2638.6,2638.2,3.48035708]
[1729299694006,0.5365,2638.6,2638.3,0.07579487]
[1729299695928,0.5365,2638.6,2638.2,4.58982895]
[1729299696157,0.5365,2638.6,2638.2,3.0]
[1729299696465,0.5365,2638.6,2638.1,5.39792895]
[1729299696623,0.5365,2638.6,2638.2,3.0]
[1729299697332,0.5365,2638.6,2638.1,5.39792895]
[1729299697505,0.5365,2638.6,2638.1,4.58982895]
[1729299698344,0.5365,2638.6,2638.2,5.07018603]
[1729299698551,0.5365,2638.6,2638.2,5.87828603]
[1729299699229,0.5365,2638.6,2638.3,0.06148047]
[1729299702509,0.5365,2639.2,2638.3,2.1316665]
[1729299702709,0.5365,2639.0,2638.5,3.0]
[1729299703218,0.5365,2639.0,2638.5,4.58982895]
[1729299703444,0.5365,2639.0,2638.5,3.0]
[1729299704520,0.5365,2639.0,2638.3,4.58982895]
[1729299704742,0.5365,2639.0,2638.2,4.58982895]
[1729299704951,0.07096688,2638.9,2638.2,4.58982895]
[1729299705253,0.5365,2638.8,2638.2,4.58982895]
[1729299706162,0.5365,2638.8,2638.3,4.58982895]
[1729299706535,0.5365,2638.8,2638.2,4.58982895]
[1729299706731,0.5365,2638.8,2638.3,1.58982895]
[1729299706935,0.5365,2638.8,2638.3,4.58982895]
[1729299707147,0.06863714,2638.7,2638.3,1.58982895]
[1729299707344,0.5365,2638.8,2638.3,4.58982895]
[1729299707560,0.5365,2638.8,2638.2,4.58982895]
[1729299708358,0.5365,2638.8,2638.3,1.58982895]
[1729299708722,0.06864415,2638.7,2638.3,1.58982895]
[1729299709153,0.5365,2638.8,2638.3,1.58982895]
[1729299710325,0.06740082,2638.7,2638.3,1.58982895]
[1729299710533,0.5365,2638.8,2638.3,1.58982895]
[1729299711666,0.5365,2638.8,2638.4,0.04786911]
[1729299711865,0.5365,2638.8,2638.3,1.58982895]
[1729299713146,0.5365,2638.8,2638.4,1.58982895]
[1729299713344,0.5365,2638.8,2638.4,3.0]
[1729299713533,0.5365,2638.8,2638.3,4.58982895]
[1729299717175,0.5365,2638.8,2638.3,1.58982895]
[1729299717874,0.5365,2638.8,2638.3,4.58982895]
[1729299718669,0.5365,2638.8,2638.3,1.58982895]
[1729299719669,0.5365,2638.8,2638.2,4.58982895]
[1729299719980,0.5365,2638.8,2638.3,1.58982895]
[1729299720760,0.5365,2638.8,2638.2,4.58982895]
[1729299721171,0.5365,2638.8,2638.2,1.58982895]
[1729299721376,0.5365,2638.8,2638.1,4.58982895]
[1729299722148,0.5365,2638.8,2638.2,1.58982895]
[1729299722375,0.5365,2638.8,2638.1,4.58982895]
[1729299723295,0.5365,2638.8,2638.2,1.58982895]
[1729299728776,0.5365,2638.8,2638.1,4.58982895]
[1729299729296,0.5365,2638.8,2638.2,1.58982895]
[1729299730567,0.5365,2638.8,2638.1,4.58982895]
[1729299731402,0.5365,2638.8,2638.2,1.58982895]
[1729299734297,0.5365,2638.8,2638.3,1.00959283]
[1729299734509,0.5365,2638.8,2638.4,3.88228154]
[1729299734817,0.5365,2638.8,2638.4,5.39812895]
[1729299735625,0.5365,2638.8,2638.4,1.58982895]
[1729299735919,0.5365,2638.8,2638.0,2.83586453]
[1729299735920,0.5365,2638.8,2638.1,1.58982895]
[1729299736097,0.5365,2638.8,2638.0,2.04218693]
[1729299736286,0.5365,2638.6,2638.0,2.04218693]
[1729299737312,0.5365,2638.6,2638.0,5.04218693]
[1729299737682,0.5365,2638.6,2638.1,0.51488441]
[1729299737884,0.5365,2638.6,2638.2,0.0616048]
[1729299738091,0.5365,2638.6,2638.1,5.54875966]
[1729299739332,0.5365,2638.6,2638.2,1.58982895]
[1729299739628,0.5365,2638.6,2638.1,5.54875966]
[1729299741110,0.5365,2638.6,2638.2,1.58982895]
[1729299741902,0.5365,2638.6,2638.1,5.54875966]
[1729299743022,0.5365,2638.6,2638.2,0.07549152]
[1729299743493,0.5365,2638.6,2638.2,1.66532047]
[1729299744735,0.5365,2638.6,2638.2,0.07549152]
[1729299747230,0.5365,2638.6,2638.2,1.66532047]
[1729299747431,0.5365,2638.6,2638.2,0.07549152]
[1729299747636,0.5365,2638.6,2638.2,1.66532047]
[1729299747925,0.5365,2638.6,2638.2,4.66532047]
[1729299750332,0.5365,2638.6,2638.2,5.14567755]
[1729299751030,0.5365,2638.6,2638.2,3.48035708]
[1729299751407,0.5365,2638.6,2638.2,5.07018603]
[1729299752295,0.5365,2638.6,2638.2,3.48035708]
[1729299752834,0.5365,2638.6,2638.2,5.07018603]
[1729299753801,0.5365,2638.6,2638.3,3.54091206]
[1729299754013,1.98632731,2639.4,2638.3,4.34651206]
[1729299754014,0.5365,2639.3,2638.3,4.34651206]
[1729299754191,0.5365,2639.3,2638.3,5.87578603]
[1729299754400,0.5365,2639.1,2638.3,5.87578603]
[1729299754603,0.35473173,2639.0,2638.3,5.87578603]
[1729299754809,0.5365,2638.9,2638.3,5.87578603]
[1729299757033,0.5365,2638.9,2638.4,1.58982895]
[1729299757542,0.5365,2638.9,2638.3,5.87578603]
[1729299757913,0.5365,2638.9,2638.3,5.39542895]
[1729299766074,0.5365,2638.9,2638.3,4.58982895]
[1729299766382,0.5365,2638.9,2638.2,4.58982895]
[1729299766581,0.06752532,2638.8,2638.2,5.07018603]
[1729299766787,0.5365,2638.7,2638.3,1.58982895]
[1729299767938,0.5365,2638.7,2638.4,0.07579179]
[1729299768142,0.5365,2638.7,2638.4,0.55614887]
[1729299774665,0.06754263,2638.6,2638.3,1.58982895]
[1729299774871,0.5365,2638.5,2638.2,4.58982895]
[1729299775171,0.5365,2638.5,2638.1,1.58982895]
[1729299777590,0.5365,2638.5,2638.0,5.18252936]